bitfinex/quotes_BTCUSD_20251209
["timestamp","ask_amount","ask_price","bid_price","bid_amount"]
[1765252214084,0.0110617,90402.0,90397.0,0.120728]
[1765252214258,0.0110617,90402.0,90397.0,0.13179031]
[1765252214460,0.02312157,90403.0,90400.0,0.323]
[1765252214706,0.02312157,90403.0,90400.0,0.01106194]
[1765252214707,0.01206,90403.0,90400.0,0.01106194]
[1765252214910,0.01206,90403.0,90402.0,0.323]
[1765252215345,0.0110606,90411.0,90405.0,0.33406133]
[1765252215496,0.01106035,90413.0,90408.0,0.54421693]
[1765252216108,0.01106047,90412.0,90408.0,0.54421693]
[1765252216286,0.04086998,90416.0,90413.0,0.01106035]
[1765252218032,0.02981,90416.0,90413.0,0.01106035]
[1765252218596,0.04086998,90416.0,90411.0,0.0110606]
[1765252218726,0.04086998,90416.0,90413.0,0.01106035]
[1765252218943,0.02981,90416.0,90413.0,0.01106035]
[1765252220414,0.02987407,90425.0,90422.0,0.01105925]
[1765252220649,0.01105901,90424.0,90420.0,0.32399999]
[1765252220785,0.02987407,90425.0,90421.0,0.01105937]
[1765252220991,0.05678,90424.0,90421.0,0.23224659]
[1765252221215,0.05678,90424.0,90422.0,0.01105925]
[1765252221552,0.05678,90424.0,90423.0,0.22118266]
[1765252221766,0.05678,90424.0,90422.0,0.01105925]
[1765252222396,0.05678,90424.0,90421.0,0.23224671]
[1765252222557,0.04093295,90425.0,90421.0,0.01105937]
[1765252222759,0.05678,90424.0,90421.0,0.01105937]
[1765252223556,6.407e-05,90425.0,90423.0,0.06417]
[1765252223760,6.407e-05,90425.0,90424.0,1.58694521]
[1765252223968,6.407e-05,90425.0,90424.0,1.18889408]
[1765252224205,6.407e-05,90425.0,90424.0,0.58455308]
[1765252224408,6.407e-05,90425.0,90424.0,0.54579308]
[1765252226469,0.09405407,90425.0,90424.0,0.54579308]
[1765252226675,0.09405407,90425.0,90424.0,0.323]
[1765252233027,0.11406407,90425.0,90424.0,0.323]
[1765252233760,0.01105901,90424.0,90420.0,0.01205949]
[1765252234054,0.01105901,90424.0,90419.0,0.01105962]
[1765252234055,0.03721,90421.0,90419.0,0.01105962]
[1765252234277,0.03721,90419.0,90418.0,0.01105974]
[1765252234625,0.09399,90419.0,90418.0,0.01105974]
[1765252235418,0.09399,90419.0,90416.0,0.33405998]
[1765252235620,0.06702,90417.0,90416.0,0.33405998]
[1765252236044,0.1238,90417.0,90416.0,0.33405998]
[1765252237034,0.1238,90417.0,90416.0,0.33505998]
[1765252239148,0.1238,90417.0,90416.0,0.001]
[1765252239349,0.1238,90417.0,90416.0,0.324]
[1765252241695,0.1238,90417.0,90416.0,0.001]
[1765252241896,0.145796,90417.0,90416.0,0.001]
[1765252242485,0.01106047,90412.0,90409.0,0.323]
[1765252242730,0.06552,90410.0,90409.0,0.323]
[1765252243037,0.06552,90410.0,90407.0,0.01106109]
[1765252243238,0.03731,90408.0,90407.0,0.01106109]
[1765252243648,0.09118,90408.0,90407.0,0.01106109]
[1765252244634,0.09118,90408.0,90407.0,0.01406109]
[1765252245044,0.09118,90408.0,90407.0,0.01506109]
[1765252245456,0.09118,90408.0,90407.0,0.01406109]
[1765252245651,0.09118,90408.0,90407.0,0.5472218]
[1765252245858,0.09118,90408.0,90407.0,0.5482218]
[1765252258934,0.03731,90408.0,90407.0,0.5482218]
[1765252259091,0.09118,90408.0,90407.0,0.5482218]
[1765252259510,0.03731,90408.0,90407.0,0.5482218]
[1765252260086,0.02821,90410.0,90409.0,0.54421691]
[1765252260296,0.08208,90410.0,90409.0,0.54421691]
[1765252260494,0.11939,90410.0,90409.0,0.54421691]
[1765252261097,0.06552,90410.0,90409.0,0.54521691]
[1765252261299,0.11939,90410.0,90409.0,0.54521691]
[1765252262158,0.11939,90410.0,90409.0,0.54721691]
[1765252262333,0.11939,90410.0,90409.0,0.326]
[1765252262844,0.11939,90410.0,90409.0,0.54721691]
[1765252263397,0.02821,90410.0,90409.0,0.54882978]
[1765252263597,0.021996,90420.0,90409.0,0.54882978]
[1765252263598,0.02832,90427.0,90424.0,0.22118021]
[1765252264314,0.08880407,90425.0,90424.0,0.22118021]
[1765252265034,0.09080407,90425.0,90424.0,0.22118021]
[1765252265643,0.09280407,90425.0,90424.0,0.22118021]
[1765252266289,0.09280407,90425.0,90424.0,0.54418021]
[1765252266495,0.08880407,90425.0,90424.0,0.54418021]
[1765252266697,0.08880407,90425.0,90424.0,0.54518021]
[1765252270647,6.407e-05,90425.0,90424.0,0.54518021]
[1765252271926,0.08880407,90425.0,90424.0,0.54518021]
[1765252272100,0.03462407,90425.0,90424.0,0.54518021]
[1765252274675,0.23221818,90433.0,90429.0,0.01105839]
[1765252274870,0.0458,90440.0,90434.0,0.22115374]
[1765252275090,0.01105729,90438.0,90434.0,0.22115374]
[1765252275276,0.0076,90435.0,90432.0,0.01105803]
[1765252275726,0.01865766,90435.0,90432.0,0.01105803]
[1765252276017,0.001,90433.0,90432.0,0.23221868]
[1765252276221,0.0076,90435.0,90434.0,0.22115576]
[1765252276420,0.02832,90436.0,90434.0,0.22115576]
[1765252277376,0.0076,90435.0,90432.0,0.01105803]
[1765252278285,0.01865766,90435.0,90432.0,0.01105803]
[1765252279186,0.02932,90436.0,90433.0,0.23221611]
[1765252279410,0.02832,90436.0,90433.0,0.01105791]
[1765252280375,0.01105766,90435.0,90432.0,0.01105803]
[1765252281201,0.02832,90436.0,90435.0,0.22115331]
[1765252282677,0.02832,90436.0,90435.0,0.22315331]
[1765252282922,0.02832,90436.0,90435.0,0.22415331]
[1765252288527,0.02832,90440.0,90439.0,0.22114353]
[1765252290259,0.00023804,90448.0,90447.0,0.22112397]
[1765252291536,0.00123804,90448.0,90447.0,0.22112397]
[1765252291935,0.00223804,90448.0,90447.0,0.22112397]
[1765252292297,0.00983804,90448.0,90445.0,0.01105644]
[1765252292518,0.00983804,90448.0,90445.0,0.2321832]
[1765252293583,0.00883804,90448.0,90445.0,0.2321832]
[1765252293790,0.00983804,90448.0,90445.0,0.2321832]
[1765252293921,0.00883804,90448.0,90446.0,0.22112421]
[1765252294315,0.00983804,90448.0,90446.0,0.22112421]
[1765252294796,0.00883804,90448.0,90446.0,0.22112421]
[1765252294952,0.00783804,90448.0,90446.0,0.22112421]
[1765252295195,0.00883804,90448.0,90446.0,0.22112421]
[1765252295365,0.00983804,90448.0,90446.0,0.22112421]
[1765252296231,0.00223804,90448.0,90446.0,0.22112421]
[1765252301151,0.0076,90447.0,90446.0,0.22112421]
[1765252301480,0.00223804,90448.0,90446.0,0.22112421]
[1765252302673,0.00123804,90448.0,90446.0,0.22112421]
[1765252302993,0.001,90447.0,90446.0,0.22112421]
[1765252303154,0.00023804,90448.0,90446.0,0.22112421]
[1765252303350,0.001,90447.0,90446.0,0.22112421]
[1765252303978,0.00123804,90448.0,90445.0,0.01105644]
[1765252304177,0.00023804,90448.0,90445.0,0.23218318]
[1765252304358,0.00123804,90448.0,90445.0,0.23218318]
[1765252304684,0.001,90447.0,90445.0,0.23218318]
[1765252305054,0.001,90447.0,90446.0,0.22112439]
[1765252305674,0.00023804,90448.0,90445.0,0.23218307]
[1765252305993,0.00123804,90448.0,90446.0,0.22112426]
[1765252306217,0.00023804,90448.0,90446.0,0.22112426]
[1765252306560,0.001,90447.0,90443.0,0.54413372]
[1765252306765,0.00123804,90448.0,90445.0,0.2321853]
[1765252307622,0.00123804,90448.0,90445.0,0.01105644]
[1765252307918,0.00023804,90448.0,90445.0,0.23218406]
[1765252308219,0.00123804,90448.0,90445.0,0.23218406]
[1765252308724,0.001,90447.0,90445.0,0.23218406]
[1765252309073,0.00123804,90448.0,90445.0,0.23218406]
[1765252309278,0.00123804,90448.0,90447.0,0.22112397]
[1765252309279,0.00223804,90448.0,90447.0,0.22112397]
[1765252309478,0.00023804,90448.0,90447.0,0.22112397]
[1765252309716,0.00023804,90448.0,90445.0,0.23218406]
[1765252309921,0.002,90447.0,90445.0,0.23218406]
[1765252310123,0.001,90447.0,90445.0,0.23218406]
[1765252310345,0.00023804,90448.0,90445.0,0.23218406]
[1765252310545,0.00123804,90448.0,90445.0,0.23218406]
[1765252310748,0.00223804,90448.0,90445.0,0.23218406]
[1765252311180,0.00123804,90448.0,90445.0,0.23218406]
[1765252311497,0.00223804,90448.0,90445.0,0.23218406]
[1765252311920,0.00223804,90448.0,90446.0,0.22112424]
[1765252312118,0.00123804,90448.0,90446.0,0.22112424]
[1765252312814,0.00023804,90448.0,90446.0,0.22112424]
[1765252313016,0.001,90447.0,90446.0,0.22112424]
[1765252313247,0.00123804,90448.0,90446.0,0.22112424]
[1765252313639,0.00223804,90448.0,90446.0,0.22112424]
[1765252313841,0.00023804,90448.0,90446.0,0.22112424]
[1765252314160,0.00023804,90448.0,90442.0,0.3340568]
[1765252314161,0.01064,90447.0,90442.0,0.3340568]
[1765252314327,0.01064,90447.0,90442.0,0.323]
[1765252314328,0.2321853,90445.0,90442.0,0.323]
[1765252315064,0.01105644,90445.0,90442.0,0.0110568]
[1765252315273,0.01105632,90446.0,90443.0,0.01105668]
[1765252315469,0.01129411,90448.0,90444.0,0.01105656]
[1765252315630,0.01105619,90447.0,90444.0,0.01105656]
[1765252315829,0.01105632,90446.0,90442.0,0.55519077]
[1765252316274,0.23341792,90448.0,90444.0,0.01105656]
[1765252316449,0.23241792,90448.0,90444.0,0.2321878]
[1765252316808,0.002,90447.0,90445.0,0.01105644]
[1765252317156,0.00023804,90448.0,90445.0,0.01105644]
[1765252317352,0.00123804,90448.0,90445.0,0.01105644]
[1765252317561,0.00223804,90448.0,90445.0,0.01105644]
[1765252318509,0.00123804,90448.0,90445.0,0.01105644]
[1765252318920,0.01969632,90446.0,90441.0,0.33405693]
[1765252319121,0.01969644,90445.0,90442.0,0.0110568]
[1765252319502,0.00864,90443.0,90442.0,0.0110568]
[1765252319710,0.00864,90443.0,90435.0,0.23220959]
[1765252319711,0.01105766,90435.0,90431.0,0.01744]
[1765252320058,0.23223189,90427.0,90423.0,0.01969632]
[1765252320234,0.01105925,90422.0,90420.0,0.03949731]
[1765252320425,0.0110595,90420.0,90415.0,0.05055742]
[1765252320571,0.0110595,90420.0,90416.0,0.01105998]
[1765252320778,0.0110595,90420.0,90417.0,0.01105986]
[1765252321083,0.00999818,90441.0,90428.0,0.22116979]
[1765252321316,0.01105778,90434.0,90429.0,0.01105839]
[1765252321517,0.01105742,90437.0,90430.0,0.22116554]
[1765252321729,0.01105742,90437.0,90429.0,0.01267126]
[1765252321730,0.01105791,90433.0,90429.0,0.01267126]
[1765252321927,0.01105778,90434.0,90431.0,0.001]
[1765252322080,0.01105766,90435.0,90431.0,0.001]
[1765252322478,0.01105766,90435.0,90429.0,0.01105839]
[1765252322677,0.00652,90443.0,90439.0,0.22114353]
[1765252322875,0.00652,90443.0,90442.0,0.22113619]
[1765252323113,0.00652,90443.0,90440.0,0.01105705]
[1765252323318,0.00652,90443.0,90441.0,0.22113864]
[1765252323745,0.00023804,90448.0,90447.0,0.54412397]
[1765252323884,0.00023804,90448.0,90447.0,0.62605684]
[1765252324660,0.00023804,90448.0,90447.0,0.67967684]
[1765252325803,0.00023804,90448.0,90447.0,0.68167684]
[1765252326441,0.00675804,90448.0,90447.0,0.54773684]
[1765252326587,0.25639556,90448.0,90447.0,0.003]
[1765252327951,0.24313464,90441.0,90440.0,0.00099999]
[1765252328120,0.24965464,90441.0,90440.0,0.00099999]
[1765252328322,0.01105717,90439.0,90436.0,0.01105754]
[1765252328528,0.00652,90437.0,90436.0,0.01105754]
[1765252329026,0.00652,90437.0,90434.0,0.22115466]
[1765252329027,0.00652,90437.0,90434.0,0.23221354]
[1765252329795,0.00652,90437.0,90433.0,0.01105791]
[1765252329796,0.01105754,90436.0,90433.0,0.01105791]
[1765252330001,0.00652,90437.0,90434.0,0.01105778]
[1765252330366,0.00652,90437.0,90435.0,0.22115331]
[1765252330747,0.00652,90437.0,90434.0,0.01105778]
[1765252330947,0.00652,90436.0,90434.0,0.2322129]
[1765252331732,0.00652,90436.0,90434.0,0.01105778]
[1765252331933,0.00652,90436.0,90434.0,0.01205778]
[1765252332284,0.00652,90436.0,90434.0,0.23221298]
[1765252332460,0.00652,90436.0,90434.0,0.23321298]
[1765252332828,0.00652,90436.0,90434.0,0.01205778]
[1765252333033,0.00652,90436.0,90434.0,0.001]
[1765252333852,0.00549,90435.0,90434.0,0.001]
[1765252334782,0.02327068,90437.0,90434.0,0.23221354]
[1765252335033,0.00652,90437.0,90436.0,0.22115086]
[1765252335426,0.01201,90437.0,90436.0,0.22115086]
[1765252336264,0.01201,90437.0,90436.0,0.22215086]
[1765252337853,0.01201,90437.0,90436.0,0.001]
[1765252343689,0.00652,90437.0,90436.0,0.001]
[1765252343879,0.01201,90437.0,90436.0,0.001]
[1765252344485,0.0175,90437.0,90436.0,0.001]
[1765252344646,0.03425068,90437.0,90436.0,0.001]
[1765252345033,0.02876068,90437.0,90436.0,0.001]
[1765252345785,0.2553991,90437.0,90436.0,0.001]
[1765252346002,0.23864842,90437.0,90436.0,0.001]
[1765252350220,0.22116309,90431.0,90430.0,0.00099999]
[1765252350516,0.00549,90431.0,90430.0,0.00099999]
[1765252350925,0.23214309,90431.0,90429.0,0.323]
[1765252351104,0.23214309,90431.0,90421.0,0.01105937]
[1765252351105,0.22118021,90424.0,90421.0,0.01105937]
[1765252351311,0.2266575,90430.0,90422.0,0.2211851]
[1765252351511,0.01105852,90428.0,90425.0,0.01105888]
[1765252351717,0.22117043,90428.0,90423.0,0.22118266]
[1765252351932,0.01105839,90429.0,90423.0,0.22118266]
[1765252352289,0.23222842,90429.0,90423.0,0.22118266]
[1765252352947,0.01105864,90427.0,90424.0,0.01105901]
[1765252353148,0.00549,90424.0,90421.0,0.01105937]
[1765252354082,0.00549,90424.0,90423.0,0.001]
[1765252354498,0.01654901,90424.0,90421.0,0.33405937]
[1765252354710,0.00549,90422.0,90421.0,0.324]
[1765252354911,0.00549,90422.0,90421.0,0.327]
[1765252355111,0.00549,90422.0,90421.0,0.001]
[1765252355689,0.00549,90422.0,90421.0,0.323]
[1765252356872,0.00549,90432.0,90423.0,0.01105913]
[1765252357076,0.22113539,90443.0,90434.0,0.22115576]
[1765252357077,0.02105498,90442.0,90434.0,0.22115576]
[1765252357601,0.01098,90435.0,90433.0,0.23221403]
[1765252357813,0.00549,90434.0,90433.0,0.23221403]
[1765252358130,0.00549,90434.0,90423.0,0.001]
[1765252358348,0.021996,90422.0,90421.0,0.002]
[1765252358548,0.027486,90422.0,90421.0,0.002]
[1765252358844,0.22121202,90411.0,90410.0,0.00099999]
[1765252359044,0.22121202,90411.0,90401.0,0.35154182]
[1765252359045,0.2212218,90407.0,90401.0,0.35154182]
[1765252359332,0.00549,90405.0,90402.0,0.0110617]
[1765252359842,0.00549,90405.0,90404.0,0.323]
[1765252360131,0.01106072,90410.0,90407.0,0.01106109]
[1765252360473,0.01106121,90406.0,90401.0,0.01112589]
[1765252360674,0.01655109,90407.0,90404.0,0.01106145]
[1765252360869,0.01655109,90407.0,90402.0,0.0140617]
[1765252360870,0.01106121,90406.0,90402.0,0.0140617]
[1765252361117,0.01106121,90406.0,90402.0,0.001]
[1765252361118,0.00549,90403.0,90402.0,0.001]
[1765252361493,0.01098,90403.0,90402.0,0.001]
[1765252361698,0.032976,90403.0,90402.0,0.001]
[1765252361903,0.22123404,90402.0,90401.0,0.32306407]
[1765252362113,0.23221404,90402.0,90401.0,6.407e-05]
[1765252362518,0.25421004,90402.0,90401.0,6.407e-05]
[1765252364101,0.25421004,90402.0,90401.0,0.00106407]
[1765252364324,0.35327715,90402.0,90401.0,0.00106407]
[1765252364855,0.35327715,90402.0,90401.0,6.407e-05]
[1765252365495,0.25421004,90402.0,90401.0,6.407e-05]
[1765252366078,0.25621004,90402.0,90401.0,6.407e-05]
[1765252366677,0.25821004,90402.0,90401.0,6.407e-05]
[1765252368510,0.27569004,90402.0,90401.0,6.407e-05]
[1765252376273,0.27020004,90402.0,90401.0,6.407e-05]
[1765252376614,0.27267004,90402.0,90401.0,6.407e-05]
[1765252382139,0.004,90402.0,90401.0,6.407e-05]
[1765252383341,0.002,90402.0,90401.0,6.407e-05]
[1765252383948,0.01106145,90404.0,90401.0,0.01112589]
[1765252385201,0.01106133,90405.0,90402.0,0.0110617]
[1765252385730,0.021996,90409.0,90405.0,0.01106133]
[1765252385848,0.23227733,90410.0,90405.0,0.01106133]
[1765252385849,0.01106072,90410.0,90405.0,0.01106133]
[1765252386044,0.00549,90411.0,90408.0,0.01106096]
[1765252386250,0.0165506,90411.0,90407.0,0.01106109]
[1765252387201,0.002,90410.0,90407.0,0.01267396]
[1765252387404,0.25102796,90410.0,90407.0,0.00161287]
[1765252387615,0.23427728,90410.0,90407.0,0.00161287]
[1765252387857,0.01675068,90409.0,90407.0,0.00161287]
[1765252388057,0.22121936,90408.0,90407.0,0.00161287]
[1765252389208,0.23227728,90410.0,90407.0,0.00261287]
[1765252389352,0.23227728,90410.0,90407.0,0.00161287]
[1765252389553,0.00062,90408.0,90407.0,0.00261287]
[1765252390784,0.00549,90411.0,90408.0,0.22121936]
[1765252390987,0.00549,90411.0,90408.0,0.01106096]
[1765252391381,0.00549,90411.0,90409.0,0.22121691]
[1765252391798,0.00549,90411.0,90409.0,0.22282978]
[1765252392017,0.01748,90423.0,90420.0,0.0110595]
[1765252392226,0.01105876,90426.0,90421.0,0.23224682]
[1765252392421,0.01105913,90423.0,90420.0,0.0110595]
[1765252392651,0.01105888,90425.0,90422.0,0.01105925]
[1765252392981,0.03305476,90426.0,90423.0,0.01105913]
[1765252393339,0.03405476,90426.0,90423.0,0.01105913]
[1765252393551,0.001,90423.0,90422.0,0.01105925]
[1765252394029,0.022996,90426.0,90423.0,0.23224179]
[1765252394497,0.2211851,90422.0,90420.0,0.00099999]
[1765252394700,0.01675068,90421.0,90420.0,0.00099999]
[1765252394977,0.0110595,90420.0,90416.0,0.01105998]
[1765252395207,0.01675068,90419.0,90416.0,0.01105998]
[1765252395478,0.01675068,90419.0,90417.0,0.22119734]
[1765252395690,0.01675068,90419.0,90416.0,0.01105998]
[1765252396005,0.22120712,90413.0,90412.0,0.323]
[1765252396194,0.01106023,90414.0,90411.0,0.0110606]
[1765252396806,0.02781091,90414.0,90411.0,0.0110606]
[1765252397164,0.03305586,90417.0,90413.0,0.01106035]
[1765252397363,0.01106011,90415.0,90412.0,0.01106047]
[1765252397812,0.01106023,90414.0,90411.0,0.0120606]
[1765252398050,0.01106011,90415.0,90412.0,0.002]
[1765252398383,0.01106023,90414.0,90411.0,0.0120606]
[1765252398587,0.01106011,90415.0,90412.0,0.01306047]
[1765252398780,0.23226255,90415.0,90412.0,0.002]
[1765252398970,0.021996,90421.0,90417.0,0.01105986]
[1765252399531,0.021996,90421.0,90416.0,0.23225976]
[1765252399532,0.23224996,90420.0,90416.0,0.01105998]
[1765252399685,0.23225463,90418.0,90412.0,0.01306047]
[1765252399890,0.01105986,90417.0,90414.0,0.01106023]
[1765252400095,0.01105998,90416.0,90412.0,0.23426959]
[1765252400436,0.01105998,90416.0,90413.0,0.01106035]
[1765252401682,0.01105998,90416.0,90413.0,0.01206035]
[1765252402123,0.22120223,90415.0,90413.0,0.001]
[1765252403597,0.22120223,90415.0,90413.0,0.002]
[1765252404206,0.22120223,90415.0,90413.0,0.001]
[1765252404597,0.02674886,90414.0,90413.0,0.003]
[1765252405431,0.02674886,90414.0,90413.0,0.002]
[1765252405642,0.01675068,90414.0,90413.0,0.22320712]
[1765252405849,0.01105998,90416.0,90413.0,0.001]
[1765252406022,0.01675068,90415.0,90413.0,0.001]
[1765252406227,0.01675068,90415.0,90413.0,0.003]
[1765252406785,0.01675068,90415.0,90413.0,0.002]
[1765252407853,0.02781079,90415.0,90411.0,0.23227257]
[1765252408052,0.01106011,90415.0,90413.0,0.002]
[1765252408252,0.2322646,90415.0,90413.0,0.002]
[1765252408468,0.01106011,90415.0,90413.0,0.002]
[1765252408874,0.01106011,90415.0,90413.0,0.003]
[1765252409739,0.01105998,90416.0,90413.0,0.003]
[1765252410909,0.01105998,90416.0,90413.0,0.01206035]
[1765252411105,0.01105998,90416.0,90413.0,0.002]
[1765252411726,0.2322622,90416.0,90413.0,0.001]
[1765252412328,0.01105998,90416.0,90413.0,0.001]
[1765252414110,0.23226203,90416.0,90413.0,0.001]
[1765252414310,0.22120413,90415.0,90413.0,0.001]
[1765252415506,0.23226424,90415.0,90413.0,0.001]
[1765252415744,0.23226424,90415.0,90413.0,0.003]
[1765252416274,0.23226181,90416.0,90413.0,0.003]
[1765252416861,0.01105986,90417.0,90413.0,0.01406035]
[1765252417069,0.01105986,90417.0,90413.0,0.01206035]
[1765252417298,0.01105986,90417.0,90414.0,0.01106023]
[1765252417495,0.01105998,90416.0,90413.0,0.01306035]
[1765252417643,0.01105998,90416.0,90413.0,0.01106035]
[1765252417848,0.01106011,90415.0,90413.0,0.001]
[1765252418261,0.01106011,90415.0,90412.0,0.01106047]
[1765252418593,0.01106011,90415.0,90410.0,0.23588692]
[1765252418594,0.021996,90420.0,90416.0,0.01105998]
[1765252418773,0.021996,90420.0,90413.0,0.01106035]
[1765252418774,0.01105876,90426.0,90421.0,0.01105937]
[1765252418955,0.01105876,90426.0,90422.0,0.23224435]
[1765252419745,0.22116954,90429.0,90424.0,0.22118021]
[1765252419944,0.01105827,90430.0,90426.0,0.01105876]
[1765252420762,0.002,90429.0,90426.0,0.01105876]
[1765252420962,0.002,90429.0,90426.0,0.23223382]
[1765252421185,0.02853815,90431.0,90427.0,0.01105864]
[1765252421387,0.002,90430.0,90427.0,0.01105864]
[1765252422019,0.01305839,90429.0,90424.0,0.22118018]
[1765252422231,0.01105864,90427.0,90423.0,0.01105913]
[1765252422565,0.01105876,90426.0,90422.0,0.01105925]
[1765252422761,0.01105913,90423.0,90420.0,0.00199998]
[1765252423173,0.01105913,90423.0,90420.0,0.00099999]
[1765252424866,0.01205913,90423.0,90420.0,0.00099999]
[1765252425372,0.001,90423.0,90420.0,0.01205949]
[1765252425514,0.001,90423.0,90421.0,0.22118755]
[1765252425960,0.001,90423.0,90422.0,0.00100058]
[1765252426752,0.23223902,90425.0,90422.0,0.00100058]
[1765252426912,0.01105901,90424.0,90420.0,0.01205949]
[1765252427113,0.01205913,90423.0,90420.0,0.01205949]
[1765252427511,0.01105913,90423.0,90420.0,0.01205949]
[1765252427912,0.23223902,90425.0,90422.0,0.01105925]
[1765252427913,0.001,90425.0,90422.0,0.01105925]
[1765252428326,0.01105876,90426.0,90422.0,0.01105925]
[1765252428848,0.001,90423.0,90422.0,0.01105925]
[1765252429045,0.022996,90423.0,90422.0,0.01105925]
[1765252429368,0.001,90423.0,90422.0,0.01105925]
[1765252429893,0.001,90425.0,90422.0,0.01105925]
[1765252430089,0.00999818,90423.0,90422.0,0.01105925]
[1765252430490,0.00999818,90425.0,90423.0,0.01105913]
[1765252430874,0.01099818,90425.0,90423.0,0.01105913]
[1765252431072,0.001,90425.0,90423.0,0.23224159]
[1765252431479,0.021996,90426.0,90423.0,0.23224159]
[1765252431695,0.001,90425.0,90423.0,0.23224159]
[1765252432229,0.001,90425.0,90424.0,0.00094103]
[1765252432830,0.002,90425.0,90424.0,0.00094103]
[1765252433029,0.001,90425.0,90424.0,0.00094103]
[1765252434653,0.002,90425.0,90424.0,0.00094103]
[1765252435096,0.01199818,90425.0,90424.0,0.00094103]
[1765252435399,0.002,90425.0,90424.0,0.00094103]
[1765252436654,0.002,90425.0,90424.0,0.22212124]
[1765252437710,0.023996,90425.0,90424.0,0.22212124]
[1765252438488,0.002,90425.0,90424.0,0.22212124]
[1765252439044,0.002,90425.0,90424.0,0.00094103]
[1765252447392,0.002,90425.0,90424.0,0.0330739]
[1765252447594,0.002,90425.0,90424.0,0.4041639]
[1765252447799,0.002,90425.0,90424.0,0.4261599]
[1765252448277,0.001,90425.0,90424.0,0.4261599]
[1765252448493,0.021996,90440.0,90437.0,0.01105742]
[1765252448707,0.03305305,90440.0,90434.0,0.01105778]
[1765252448898,0.021996,90437.0,90434.0,0.01105778]
[1765252449406,0.021996,90437.0,90436.0,0.0005838]
[1765252450667,0.021996,90437.0,90436.0,0.22173466]
[1765252451623,0.021996,90437.0,90436.0,0.0005838]
[1765252451822,0.021996,90437.0,90436.0,0.0035838]
[1765252452022,0.021996,90437.0,90436.0,0.22573466]
[1765252452230,0.021996,90437.0,90436.0,0.0045838]
[1765252461759,0.021996,90440.0,90439.0,0.01105717]
[1765252461981,0.021996,90440.0,90439.0,0.2322007]
[1765252462177,0.021996,90440.0,90439.0,0.01105717]
[1765252462992,0.021996,90440.0,90439.0,0.01405717]
[1765252463397,0.021996,90440.0,90439.0,0.003]
[1765252467176,0.021996,90440.0,90439.0,0.00349451]
[1765252467600,0.24313708,90440.0,90439.0,0.00349451]
[1765252468024,0.24313708,90440.0,90405.0,0.01106133]
[1765252468025,0.0110606,90411.0,90405.0,0.01106133]
[1765252468225,0.021996,90412.0,90409.0,0.01106084]
[1765252468421,0.021996,90412.0,90408.0,0.03321812]
[1765252468422,0.22121691,90409.0,90408.0,0.03321812]
[1765252468669,0.0110606,90411.0,90405.0,0.00167694]
[1765252468670,0.01106072,90410.0,90407.0,0.01106109]
[1765252468967,0.021996,90412.0,90409.0,0.01106084]
[1765252469969,0.021996,90412.0,90409.0,0.23227727]
[1765252470963,0.022996,90412.0,90409.0,0.23227727]
[1765252471686,0.03405647,90412.0,90409.0,0.01106084]
[1765252471866,0.0110606,90411.0,90408.0,0.01106096]
[1765252473077,0.03405647,90412.0,90408.0,0.01106096]
[1765252473474,0.03405647,90412.0,90410.0,0.00086334]
[1765252473734,0.002,90411.0,90408.0,0.01106096]
[1765252474134,0.007,90411.0,90410.0,0.00086334]
[1765252474310,0.25426834,90412.0,90410.0,0.00086334]
[1765252474488,0.0110606,90411.0,90408.0,0.01106096]
[1765252475309,0.23227518,90410.0,90405.0,0.01273827]
[1765252475486,0.01106084,90409.0,90406.0,0.01106121]
[1765252476700,0.22122425,90406.0,90405.0,0.00167694]
[1765252476905,0.24322025,90406.0,90405.0,0.00167694]
[1765252477442,0.22122425,90406.0,90405.0,6.407e-05]
[1765252477975,0.22622425,90406.0,90405.0,6.407e-05]
[1765252478215,0.22222425,90406.0,90405.0,6.407e-05]
[1765252478728,0.22422425,90406.0,90405.0,6.407e-05]
[1765252479300,0.22322425,90406.0,90405.0,6.407e-05]
[1765252479492,0.002,90406.0,90405.0,6.407e-05]
[1765252487405,0.023996,90406.0,90405.0,6.407e-05]
[1765252487779,0.023996,90406.0,90405.0,0.00107632]
[1765252487984,0.04074668,90406.0,90405.0,0.00107632]
[1765252488183,0.11671655,90406.0,90405.0,0.00107632]
[1765252488518,0.04074668,90406.0,90405.0,0.00107632]
[1765252489362,0.04074668,90406.0,90405.0,0.00207632]
[1765252489575,0.03874668,90406.0,90405.0,0.00207632]
[1765252490026,0.03874668,90406.0,90405.0,0.00407632]
[1765252490252,0.021996,90406.0,90405.0,0.00407632]
[1765252498473,0.01106084,90409.0,90406.0,0.01106121]
[1765252499580,0.01106072,90410.0,90407.0,0.01106109]
[1765252499881,0.01106072,90410.0,90406.0,0.01306121]
[1765252500383,0.24320536,90413.0,90408.0,0.01106096]
[1765252500581,0.03305635,90413.0,90410.0,0.01106072]
[1765252500735,0.03305635,90413.0,90408.0,0.01267383]
[1765252500736,0.0110606,90411.0,90408.0,0.01267383]
[1765252501473,0.22121446,90410.0,90408.0,0.00161287]
[1765252501652,0.01675068,90409.0,90408.0,0.00161287]
[1765252501833,0.22121446,90410.0,90408.0,0.00161287]
[1765252502448,0.22121446,90410.0,90408.0,0.00361287]
[1765252502822,0.22121446,90410.0,90408.0,0.00161287]
[1765252503026,0.22121446,90410.0,90408.0,0.00361287]
[1765252503627,0.23227495,90411.0,90408.0,0.00361287]
[1765252503828,0.22121634,90410.0,90408.0,0.00553577]
[1765252504053,0.22121634,90410.0,90408.0,0.00461287]
[1765252504453,0.22121634,90410.0,90408.0,0.00361287]
[1765252504636,0.01106047,90412.0,90408.0,0.01467383]
[1765252504852,0.0110606,90411.0,90408.0,0.00361287]
[1765252505055,0.22121635,90410.0,90408.0,0.00361287]
[1765252505437,0.22121635,90410.0,90408.0,0.00461287]
[1765252509196,0.22121635,90410.0,90409.0,0.00089312]
[1765252509958,0.01106035,90413.0,90409.0,0.00089312]
[1765252510095,0.01106047,90412.0,90409.0,0.01106084]
[1765252510729,0.01106035,90413.0,90409.0,0.01406084]
[1765252510884,0.01106047,90412.0,90409.0,0.003]
[1765252511080,0.01106047,90412.0,90409.0,0.002]
[1765252511959,0.01106047,90412.0,90408.0,0.00161287]
[1765252511960,0.0110606,90411.0,90408.0,0.00161287]
[1765252512250,0.22121446,90410.0,90409.0,0.001]
[1765252513025,0.22121446,90410.0,90408.0,0.00161287]
[1765252513230,0.01675068,90409.0,90408.0,0.00361287]
[1765252513430,0.03874668,90409.0,90408.0,0.00361287]
[1765252513642,0.03874668,90409.0,90408.0,0.00161287]
[1765252514576,0.01675068,90409.0,90408.0,0.00261287]
[1765252515440,0.01675068,90409.0,90408.0,0.00461287]